fUST/lending_fUST_20240721
["ID","MTS","AMOUNT","RATE_DAILY","PERIOD"]
[332753589,1721503846684,-3104.21,0.00013698,2]
[332753590,1721503846696,-500.0,0.00013698,2]
[332753591,1721503846707,-4261.58,0.00013698,2]
[332753592,1721503846719,-4261.58,0.00013698,2]
[332753593,1721503846728,-3104.21,0.00013698,2]
[332753594,1721503846739,-4261.58,0.00013698,2]
[332753595,1721503846750,-3104.21,0.00013698,2]
[332753596,1721503846759,-4261.58,0.00013698,2]
[332753597,1721503846769,-3104.21,0.00013698,2]
[332753598,1721503846781,-4261.58,0.00013698,2]
[332753599,1721503846790,-3104.21,0.00013698,2]
[332753600,1721503846800,-4261.58,0.00013698,2]
[332753601,1721503846809,-2585.51,0.00013698,2]
[332753602,1721503846820,-3104.37919494,0.00013698,2]
[332753603,1721503846830,-4261.58,0.00013698,2]
[332753604,1721503846842,-500.90625531,0.00013698,2]
[332753605,1721503846853,-4261.58,0.00013698,2]
[332753606,1721503846865,-4261.58,0.00013698,2]
[332753607,1721503846876,-4261.58,0.00013698,2]
[332753608,1721503846886,-4261.58,0.00013698,2]
[332753609,1721503846896,-4261.58,0.00013698,2]
[332753610,1721503846906,-4261.58,0.00013698,2]
[332753611,1721503846916,-4261.58,0.00013698,2]
[332753612,1721503846927,-4261.75102389,0.00013698,2]
[332753613,1721503846937,-500.0,0.00013698,2]
[332753614,1721503846947,-2158.72,0.00013698,2]
[332753615,1721503846956,-500.0,0.00013698,2]
[332753616,1721503846966,-1240.33,0.00013698,2]
[332753617,1721503846975,-1276.73,0.00013698,2]
[332753618,1721503846988,-500.0,0.00013698,2]
[332753619,1721503846999,-2275.11,0.00013698,2]
[332753620,1721503847010,-500.0,0.00013698,2]
[332753621,1721503847021,-505.36147925,0.00013698,2]
[332753622,1721503847030,-500.0,0.00013698,2]
[332753623,1721503847041,-533.97409384,0.00013698,2]
[332753624,1721503847052,-500.0,0.00013698,2]
[332753625,1721503847061,-512.07655604,0.00013698,2]
[332753626,1721503847071,-500.0,0.00013698,2]
[332753627,1721503847084,-942.82,0.00013698,2]
[332753628,1721503847094,-513.33275701,0.00013698,2]
[332753629,1721503847104,-506.666072,0.00013698,2]
[332753630,1721503847113,-500.0,0.00013698,2]
[332753631,1721503847123,-500.0,0.00013698,2]
[332753632,1721503847132,-500.0,0.00013698,2]
[332753633,1721503847141,-842.86,0.00013698,2]
[332753634,1721503847152,-500.0,0.00013698,2]
[332753635,1721503847161,-500.0,0.00013698,2]
[332753636,1721503847171,-503.08189526,0.00013698,2]
[332753637,1721503847180,-500.0,0.00013698,2]
[332753638,1721503847189,-585.29,0.00013698,2]
[332753639,1721503847198,-613.0113624,0.00013699,2]
[332753640,1721503847207,-3000.0,0.00013699,2]
[332753641,1721503847217,-1374.674225,0.00013699,2]
[332753642,1721503847226,-250694.64617489,0.000139,2]
[332753643,1721503847235,-512.27304389,0.00013972,2]
[332753644,1721503847245,-500.0,0.00013972,2]
[332753645,1721503847255,-500.0,0.00013972,2]
[332753646,1721503847265,-908.99,0.00013972,2]
[332753647,1721503847274,-919.91,0.00013972,2]
[332753648,1721503847283,-500.0,0.00013972,2]
[332753649,1721503847292,-526.48973884,0.00013972,2]
[332753650,1721503847302,-856.09,0.00013972,2]
[332753651,1721503847311,-500.0,0.00013972,2]
[332753652,1721503847321,-912.49,0.00013972,2]
[332753653,1721503847330,-500.0,0.00013972,2]
[332753654,1721503847340,-763.71,0.00013972,2]
[332753655,1721503847349,-500.0,0.00013972,2]
[332753656,1721503847359,-500.0,0.00013972,2]
[332753657,1721503847368,-1001.96,0.00013972,2]
[332753658,1721503847378,-500.0,0.00013972,2]
[332753659,1721503847387,-500.0,0.00013972,2]
[332753660,1721503847397,-500.0,0.00013972,2]
[332753661,1721503847406,-500.0,0.00013972,2]
[332753662,1721503847416,-500.0,0.00013972,2]
[332753663,1721503847425,-812.17,0.00013972,2]
[332753664,1721503847435,-500.0,0.00013972,2]
[332753665,1721503847445,-500.0,0.00013972,2]
[332753666,1721503847455,-500.0,0.00013972,2]
[332753667,1721503847465,-500.0,0.00013972,2]
[332753668,1721503847474,-500.0,0.00013972,2]
[332753669,1721503847497,-649.13,0.00013972,2]
[332753670,1721503847507,-500.0,0.00013972,2]
[332753671,1721503847518,-571.49,0.00013972,2]
[332753672,1721503847529,-500.0,0.00013972,2]
[332753673,1721503847539,-502.09315046,0.00013972,2]
[332753674,1721503847550,-500.76394624,0.00013972,2]
[332753675,1721503847561,-500.0,0.00013972,2]
[332753676,1721503847571,-500.0,0.00013972,2]
[332753677,1721503847582,-500.0,0.00013972,2]
[332753678,1721503847593,-291.97498847,0.00013972,2]
[332753679,1721503847603,-500.0,0.00013972,2]
[332753680,1721503847614,-313.35768215,0.00013972,2]
[332753681,1721503847624,-500.0,0.00013972,2]
[332753682,1721503847634,-500.0,0.00013972,2]
[332753683,1721503847645,-500.0,0.00013972,2]
[332753684,1721503847655,-511.37040743,0.00013972,2]
[332753685,1721503847665,-500.0,0.00013972,2]
[332753686,1721503847675,-500.0,0.00013972,2]
[332753687,1721503847685,-500.0,0.00013972,2]
[332753688,1721503847695,-500.0,0.00013972,2]
[332753689,1721503847706,-1118.49,0.00013972,2]
[332753690,1721503847716,-500.0,0.00013972,2]
[332753691,1721503847727,-500.0,0.00013972,2]
[332753692,1721503847737,-500.0,0.00013972,2]
[332753693,1721503847746,-500.0,0.00013972,2]
[332753694,1721503847756,-500.0,0.00013972,2]
[332753695,1721503847766,-503.55316172,0.00013972,2]
[332753696,1721503847777,-652.79,0.00013972,2]
[332753697,1721503847788,-500.0,0.00013972,2]
[332753698,1721503847798,-500.0,0.00013972,2]
[332753699,1721503847809,-569.67,0.00013972,2]
[332753700,1721503847820,-500.0,0.00013972,2]
[332753701,1721503847831,-500.0,0.00013972,2]
[332753702,1721503847841,-500.0,0.00013972,2]
[332753703,1721503847852,-500.0,0.00013972,2]
[332753704,1721503847862,-500.0,0.00013972,2]
[332753705,1721503847871,-281.9230277,0.00013972,2]
[332753706,1721503847882,-500.0,0.00013972,2]
[332753707,1721503847893,-500.0,0.00013972,2]
[332753708,1721503847903,-659.36,0.00013972,2]
[332753709,1721503847913,-500.0,0.00013972,2]
[332753710,1721503847924,-500.0,0.00013972,2]
[332753711,1721503847934,-500.0,0.00013972,2]
[332753712,1721503847944,-500.0,0.00013972,2]
[332753713,1721503847953,-500.0,0.00013972,2]
[332753714,1721503847963,-500.0,0.00013972,2]
[332753715,1721503847973,-500.0,0.00013972,2]
[332753716,1721503847983,-500.0,0.00013972,2]
[332753717,1721503847993,-500.0,0.00013972,2]
[332753718,1721503848002,-500.0,0.00013972,2]
[332753719,1721503848012,-500.0,0.00013972,2]
[332753720,1721503848022,-500.0,0.00013972,2]
[332753721,1721503848031,-618.28186363,0.00013972,2]
[332753722,1721503848041,-400.0,0.00013972,2]
[332753723,1721503848051,-500.0,0.00013972,2]
[332753724,1721503848062,-355.50504189,0.00013972,2]
[332753725,1721503848071,-500.0,0.00013972,2]
[332753726,1721503848087,-471.64085717,0.00013972,2]
[332753727,1721503848098,-500.0,0.00013972,2]
[332753728,1721503848110,-520.9477985,0.00013972,2]
[332753729,1721503848120,-500.0,0.00013972,2]
[332753730,1721503848130,-500.0,0.00013972,2]
[332753731,1721503848140,-500.0,0.00013972,2]
[332753732,1721503848149,-539.26,0.00013972,2]
[332753733,1721503848159,-500.0,0.00013972,2]
[332753734,1721503848169,-500.0,0.00013972,2]
[332753735,1721503848179,-150.0,0.00013972,2]
[332753736,1721503848189,-500.0,0.00013972,2]
[332753737,1721503848200,-500.0,0.00013972,2]
[332753738,1721503848295,-500.0,0.00013972,2]
[332753739,1721503848305,-245.08411045,0.00013972,2]
[332753740,1721503848315,-1528.42,0.00013972,2]
[332753741,1721503848326,-500.0,0.00013972,2]
[332753742,1721503848336,-500.0,0.00013972,2]
[332753743,1721503848346,-507.42940929,0.00013972,2]
[332753744,1721503848356,-500.0,0.00013972,2]
[332753745,1721503848365,-500.0,0.00013972,2]
[332753746,1721503848375,-500.0,0.00013972,2]
[332753747,1721503848385,-500.0,0.00013972,2]
[332753748,1721503848394,-500.0,0.00013972,2]
[332753749,1721503848404,-500.0,0.00013972,2]
[332753750,1721503848414,-500.0,0.00013972,2]
[332753751,1721503848424,-500.0,0.00013972,2]
[332753752,1721503848433,-785.89,0.00013972,2]
[332753753,1721503848442,-500.0,0.00013972,2]
[332753754,1721503848451,-500.0,0.00013972,2]
[332753755,1721503848460,-500.0,0.00013972,2]
[332753756,1721503848469,-961.48,0.00013972,2]
[332753757,1721503848478,-500.0,0.00013972,2]
[332753758,1721503848488,-500.0,0.00013972,2]
[332753759,1721503848498,-1328.62,0.00013972,2]
[332753760,1721503848507,-256.28354357,0.00013972,2]
[332753761,1721503848517,-500.0,0.00013972,2]
[332753762,1721503848527,-529.69,0.00013972,2]
[332753763,1721503848537,-529.26846187,0.00013972,2]
[332753764,1721503848546,-542.0321779,0.00013972,2]
[332753765,1721503848556,-537.08,0.00013972,2]
[332753766,1721503848566,-500.0,0.00013972,2]
[332753767,1721503848577,-500.0,0.00013972,2]
[332753768,1721503848587,-500.0,0.00013972,2]
[332753769,1721503848598,-500.0,0.00013972,2]
[332753770,1721503848608,-500.0,0.00013972,2]
[332753771,1721503848617,-500.0,0.00013972,2]
[332753772,1721503848628,-500.0,0.00013972,2]
[332753773,1721503848638,-500.0,0.00013972,2]
[332753774,1721503848651,-500.0,0.00013972,2]
[332753775,1721503848661,-500.0,0.00013972,2]
[332753776,1721503848671,-2305.69,0.00013972,2]
[332753777,1721503848682,-500.0,0.00013972,2]
[332753778,1721503848691,-571.36,0.00013972,2]
[332753779,1721503848701,-500.0,0.00013972,2]
[332753780,1721503848711,-503.98,0.00013972,2]
[332753781,1721503848721,-816.65,0.00013972,2]
[332753782,1721503848731,-521.24,0.00013972,2]
[332753783,1721503848741,-500.0,0.00013972,2]
[332753784,1721503848751,-500.0,0.00013972,2]
[332753785,1721503848760,-503.24791271,0.00013972,2]
[332753786,1721503848769,-3257.41,0.00013972,2]
[332753787,1721503848779,-500.0,0.00013972,2]
[332753788,1721503848789,-500.0,0.00013972,2]
[332753789,1721503848799,-289.40371987,0.00013972,2]
[332753790,1721503848810,-805.76,0.00013972,2]
[332753791,1721503848820,-892.58,0.00013972,2]
[332753792,1721503848832,-563.29,0.00013972,2]
[332753793,1721503848842,-500.0,0.00013972,2]
[332753794,1721503848852,-711.11,0.00013972,2]
[332753795,1721503848863,-1030.18,0.00013972,2]
[332753796,1721503848872,-500.0,0.00013972,2]
[332753797,1721503848883,-2399.27,0.00013972,2]
[332753798,1721503848893,-537.53,0.00013972,2]
[332753799,1721503848903,-500.0,0.00013972,2]
[332753800,1721503848912,-500.0,0.00013972,2]
[332753801,1721503848922,-642.9,0.00013972,2]
[332753802,1721503848932,-637.92,0.00013972,2]
[332753803,1721503848943,-526.61,0.00013972,2]
[332753804,1721503848953,-662.55,0.00013972,2]
[332753805,1721503848963,-500.0,0.00013972,2]
[332753806,1721503848972,-500.0,0.00013972,2]
[332753807,1721503848982,-2413.04,0.00013972,2]
[332753808,1721503848993,-553.59452076,0.00013972,2]
[332753809,1721503849004,-506.27059481,0.00013972,2]
[332753810,1721503849014,-170.43129503,0.00013972,2]
[332753811,1721503849024,-500.0,0.00013972,2]
[332753812,1721503849035,-500.0,0.00013972,2]
[332753813,1721503849044,-2183.53,0.00013972,2]
[332753814,1721503849054,-500.0,0.00013972,2]
[332753815,1721503849064,-1127.27,0.00013972,2]
[332753816,1721503849074,-500.0,0.00013972,2]
[332753817,1721503849088,-744.59,0.00013972,2]
[332753818,1721503849098,-500.0,0.00013972,2]
[332753819,1721503849108,-500.0,0.00013972,2]
[332753820,1721503849117,-1731.24,0.00013972,2]
[332753821,1721503849128,-500.0,0.00013972,2]
[332753822,1721503849138,-509.41848931,0.00013972,2]
[332753823,1721503849148,-500.0,0.00013972,2]
[332753824,1721503849158,-500.0,0.00013972,2]
[332753825,1721503849168,-500.0,0.00013972,2]
[332753826,1721503849178,-500.0,0.00013972,2]
[332753827,1721503849188,-500.0,0.00013972,2]
[332753828,1721503849198,-500.0,0.00013972,2]
[332753829,1721503849208,-571.79,0.00013972,2]
[332753830,1721503849218,-758.22,0.00013972,2]
[332753831,1721503849227,-500.0,0.00013972,2]
[332753832,1721503849236,-2992.55,0.00013972,2]
[332753833,1721503849246,-500.0,0.00013972,2]
[332753834,1721503849255,-1436.8,0.00013972,2]
[332753835,1721503849264,-500.0,0.00013972,2]
[332753836,1721503849274,-4107.87,0.00013972,2]
[332753837,1721503849283,-654.24,0.00013972,2]
[332753838,1721503849292,-500.0,0.00013972,2]
[332753839,1721503849301,-500.0,0.00013972,2]
[332753840,1721503849311,-500.0,0.00013972,2]
[332753841,1721503849320,-783.15,0.00013972,2]
[332753842,1721503849330,-500.0,0.00013972,2]
[332753843,1721503849339,-1930.7,0.00013972,2]
[332753844,1721503849349,-504.00214773,0.00013972,2]
[332753845,1721503849358,-594.58,0.00013972,2]
[332753846,1721503849368,-536.17445901,0.00013972,2]
[332753847,1721503849378,-500.0,0.00013972,2]
[332753848,1721503849388,-500.0,0.00013972,2]
[332753849,1721503849398,-500.0,0.00013972,2]
[332753850,1721503849407,-500.0,0.00013972,2]
[332753851,1721503849417,-500.0,0.00013972,2]
[332753852,1721503849427,-500.0,0.00013972,2]
[332753853,1721503849437,-500.0,0.00013972,2]
[332753854,1721503849447,-659.5,0.00013972,2]
[332753855,1721503849457,-507.45038816,0.00013972,2]
[332753856,1721503849466,-510.42578769,0.00013972,2]
[332753857,1721503849476,-617.69,0.00013972,2]
[332753858,1721503849486,-500.0,0.00013972,2]
[332753859,1721503849497,-500.0,0.00013972,2]
[332753860,1721503849507,-500.0,0.00013972,2]
[332753861,1721503849517,-500.0,0.00013972,2]
[332753862,1721503849526,-500.0,0.00013972,2]
[332753863,1721503849535,-500.0,0.00013972,2]
[332753864,1721503849544,-500.0,0.00013972,2]
[332753865,1721503849554,-507.77956758,0.00013972,2]
[332753866,1721503849563,-500.0,0.00013972,2]
[332753867,1721503849573,-500.0,0.00013972,2]
[332753868,1721503849582,-1189.46,0.00013972,2]
[332753869,1721503849592,-500.0,0.00013972,2]
[332753870,1721503849601,-612.0,0.00013972,2]
[332753871,1721503849611,-500.0,0.00013972,2]
[332753872,1721503849622,-500.0,0.00013972,2]
[332753873,1721503849632,-912.35,0.00013972,2]
[332753874,1721503849641,-500.0,0.00013972,2]
[332753875,1721503849651,-693.44,0.00013972,2]
[332753876,1721503849660,-500.0,0.00013972,2]
[332753877,1721503849670,-500.0,0.00013972,2]
[332753878,1721503849680,-535.04,0.00013972,2]
[332753879,1721503849689,-500.0,0.00013972,2]
[332753880,1721503849699,-500.0,0.00013972,2]
[332753881,1721503849708,-500.0,0.00013972,2]
[332753882,1721503849718,-1282.95,0.00013972,2]
[332753883,1721503849728,-501.43123297,0.00013972,2]
[332753884,1721503849737,-825.74,0.00013972,2]
[332753885,1721503849746,-500.0,0.00013972,2]
[332753886,1721503849756,-500.0,0.00013972,2]
[332753887,1721503849765,-500.0,0.00013972,2]
[332753888,1721503849775,-511.32174449,0.00013972,2]
[332753889,1721503849784,-500.0,0.00013972,2]
[332753890,1721503849793,-254.88943529,0.00013972,2]
[332753891,1721503849803,-2620.27,0.00013972,2]
[332753892,1721503849812,-500.0,0.00013972,2]
[332753893,1721503849821,-500.0,0.00013972,2]
[332753894,1721503849831,-500.0,0.00013972,2]
[332753895,1721503849840,-1766.9,0.00013972,2]
[332753896,1721503849849,-1811.52,0.00013972,2]
[332753897,1721503849859,-562.63316697,0.00013972,2]
[332753898,1721503849868,-500.0,0.00013972,2]
[332753899,1721503849878,-560.63,0.00013972,2]
[332753900,1721503849887,-641.37526896,0.00013972,2]
[332753901,1721503849897,-500.0,0.00013972,2]
[332753902,1721503849906,-500.0,0.00013972,2]
[332753903,1721503849916,-500.0,0.00013972,2]
[332753904,1721503849929,-500.0,0.00013972,2]
[332753905,1721503849941,-500.0,0.00013972,2]
[332753906,1721503849950,-500.0,0.00013972,2]
[332753907,1721503849959,-779.56,0.00013972,2]
[332753908,1721503849968,-500.0,0.00013972,2]
[332753909,1721503849977,-855.61,0.00013972,2]
[332753910,1721503849986,-500.0,0.00013972,2]
[332753911,1721503849995,-897.56,0.00013972,2]
[332753912,1721503850005,-500.0,0.00013972,2]
[332753913,1721503850014,-507.40824382,0.00013972,2]
[332753914,1721503850023,-500.0,0.00013972,2]
[332753915,1721503850033,-500.0,0.00013972,2]
[332753916,1721503850042,-500.0,0.00013972,2]
[332753917,1721503850051,-177.09484028,0.00013972,2]
[332753918,1721503850061,-500.0,0.00013972,2]
[332753919,1721503850070,-500.0,0.00013972,2]
[332753920,1721503850082,-600.4,0.00013972,2]
[332753921,1721503850091,-982.99,0.00013972,2]
[332753922,1721503850101,-2168.23,0.00013972,2]
[332753923,1721503850110,-534.87,0.00013972,2]
[332753924,1721503850120,-500.0,0.00013972,2]
[332753925,1721503850129,-1393.65,0.00013972,2]
[332753926,1721503850143,-500.0,0.00013972,2]
[332753927,1721503850153,-807.67,0.00013972,2]
[332753928,1721503850162,-502.76716104,0.00013972,2]
[332753929,1721503850172,-2063.58,0.00013972,2]
[332753930,1721503850182,-1040.73,0.00013972,2]
[332753931,1721503850191,-500.0,0.00013972,2]
[332753932,1721503850201,-421.88467126,0.00013972,2]
[332753933,1721503850210,-1804.4,0.00013972,2]
[332753934,1721503850220,-560.73301691,0.00013972,2]
[332753935,1721503850229,-500.0,0.00013972,2]
[332753936,1721503850239,-2665.52,0.00013972,2]
[332753937,1721503850249,-500.0,0.00013972,2]
[332753938,1721503850258,-2146.19,0.00013972,2]
[332753939,1721503850267,-500.0,0.00013972,2]
[332753940,1721503850277,-500.0,0.00013972,2]
[332753941,1721503850287,-500.0,0.00013972,2]
[332753942,1721503850296,-500.0,0.00013972,2]
[332753943,1721503850306,-500.0,0.00013972,2]
[332753944,1721503850316,-500.0,0.00013972,2]
[332753945,1721503850327,-500.0,0.00013972,2]
[332753946,1721503850337,-500.0,0.00013972,2]
[332753947,1721503850346,-921.43,0.00013972,2]
[332753948,1721503850355,-721.38,0.00013972,2]
[332753949,1721503850364,-500.0,0.00013972,2]
[332753950,1721503850374,-500.0,0.00013972,2]
[332753951,1721503850383,-763.32,0.00013972,2]
[332753952,1721503850392,-500.0,0.00013972,2]
[332753953,1721503850403,-500.0,0.00013972,2]
[332753954,1721503850412,-500.0,0.00013972,2]
[332753955,1721503850421,-500.0,0.00013972,2]
[332753956,1721503850431,-500.0,0.00013972,2]
[332753957,1721503850441,-500.0,0.00013972,2]
[332753958,1721503850450,-699.32,0.00013972,2]
[332753959,1721503850459,-1069.52,0.00013972,2]
[332753960,1721503850468,-724.24,0.00013972,2]
[332753961,1721503850478,-551.34285931,0.00013972,2]
[332753962,1721503850488,-518.24520718,0.00013972,2]
[332753963,1721503850497,-521.45625736,0.00013972,2]
[332753964,1721503850507,-500.0,0.00013972,2]
[332753965,1721503850516,-1367.5,0.00013972,2]
[332753966,1721503850525,-1003.63,0.00013972,2]
[332753967,1721503850534,-500.0,0.00013972,2]
[332753968,1721503850543,-500.0,0.00013972,2]
[332753969,1721503850552,-2488.95,0.00013972,2]
[332753970,1721503850562,-1791.92,0.00013972,2]
[332753971,1721503850572,-1566.01,0.00013972,2]
[332753972,1721503850584,-586.14,0.00013972,2]
[332753973,1721503850593,-500.0,0.00013972,2]
[332753974,1721503850602,-500.0,0.00013972,2]
[332753975,1721503850611,-500.0,0.00013972,2]
[332753976,1721503850620,-335.80325809,0.00013972,2]
[332753977,1721503850631,-3002.39,0.00013972,2]
[332753978,1721503850640,-889.11,0.00013972,2]
[332753979,1721503850649,-500.0,0.00013972,2]
[332753980,1721503850659,-2074.95,0.00013972,2]
[332753981,1721503850667,-3869.74,0.00013972,2]
[332753982,1721503850677,-500.0,0.00013972,2]
[332753983,1721503850686,-500.0,0.00013972,2]
[332753984,1721503850696,-816.21,0.00013972,2]
[332753985,1721503850706,-2356.17,0.00013972,2]
[332753986,1721503850715,-769.49,0.00013972,2]
[332753987,1721503850724,-500.0,0.00013972,2]
[332753988,1721503850733,-1193.56,0.00013972,2]
[332753989,1721503850743,-500.0,0.00013972,2]
[332753990,1721503850752,-5614.66,0.00013972,2]
[332753991,1721503850761,-500.0,0.00013972,2]
[332753992,1721503850771,-4842.68,0.00013972,2]
[332753993,1721503850780,-2628.42,0.00013972,2]
[332753994,1721503850790,-500.0,0.00013972,2]
[332753995,1721503850799,-500.0,0.00013972,2]
[332753996,1721503850808,-1334.16,0.00013972,2]
[332753997,1721503850817,-500.0,0.00013972,2]
[332753998,1721503850828,-762.0,0.00013972,2]
[332753999,1721503850837,-2675.28,0.00013972,2]
[332754000,1721503850846,-500.0,0.00013972,2]
[332754001,1721503850856,-578.61,0.00013972,2]
[332754002,1721503850865,-500.0,0.00013972,2]
[332754003,1721503850875,-682.11,0.00013972,2]
[332754004,1721503850884,-511.02301535,0.00013972,2]
[332754005,1721503850894,-596.66,0.00013972,2]
[332754006,1721503850904,-653.11,0.00013972,2]
[332754007,1721503850914,-500.0,0.00013972,2]
[332754008,1721503850923,-500.0,0.00013972,2]
[332754009,1721503850933,-688.02,0.00013972,2]
[332754010,1721503850943,-3568.54,0.00013972,2]
[332754011,1721503850952,-2479.41,0.00013972,2]
[332754012,1721503850962,-3611.41,0.00013972,2]
[332754013,1721503850972,-500.0,0.00013972,2]
[332754014,1721503850981,-601.52472544,0.00013972,2]
[332754015,1721503850991,-500.0,0.00013972,2]
[332754016,1721503851001,-1615.36,0.00013972,2]
[332754017,1721503851010,-583.33475046,0.00013972,2]
[332754018,1721503851019,-500.0,0.00013972,2]
[332754019,1721503851029,-1455.17,0.00013972,2]
[332754020,1721503851038,-500.0,0.00013972,2]
[332754021,1721503851048,-510.07389428,0.00013972,2]
[332754022,1721503851058,-647.58,0.00013972,2]
[332754023,1721503851068,-500.0,0.00013972,2]
[332754024,1721503851082,-601.56,0.00013972,2]
[332754025,1721503851096,-1164.01,0.00013972,2]
[332754026,1721503851106,-500.0,0.00013972,2]
[332754027,1721503851119,-500.0,0.00013972,2]
[332754028,1721503851130,-1876.24,0.00013972,2]
[332754029,1721503851139,-500.0,0.00013972,2]
[332754030,1721503851150,-500.0,0.00013972,2]
[332754031,1721503851160,-500.0,0.00013972,2]
[332754032,1721503851169,-594.49,0.00013972,2]
[332754033,1721503851179,-922.66,0.00013972,2]
[332754034,1721503851189,-505.99,0.00013972,2]
[332754035,1721503851201,-1006.7,0.00013972,2]
[332754036,1721503851210,-3831.44,0.00013972,2]
[332754037,1721503851222,-660.13,0.00013972,2]
[332754038,1721503851232,-500.0,0.00013972,2]
[332754039,1721503851243,-219.41559619,0.00013972,2]
[332754040,1721503851253,-500.0,0.00013972,2]
[332754041,1721503851263,-9525.09,0.00013972,2]
[332754042,1721503851274,-5451.22,0.00013972,2]
[332754043,1721503851284,-539.75121852,0.00013972,2]
[332754044,1721503851296,-930.37,0.00013972,2]
[332754045,1721503851306,-3826.08,0.00013972,2]
[332754046,1721503851317,-500.0,0.00013972,2]
[332754047,1721503851329,-3008.42,0.00013972,2]
[332754048,1721503851342,-2915.71,0.00013972,2]
[332754049,1721503851352,-500.0,0.00013972,2]
[332754050,1721503851362,-500.0,0.00013972,2]
[332754051,1721503851373,-500.0,0.00013972,2]
[332754052,1721503851384,-500.0,0.00013972,2]
[332754053,1721503851394,-650.96,0.00013972,2]
[332754054,1721503851404,-500.0,0.00013972,2]
[332754055,1721503851414,-2230.68,0.00013972,2]
[332754056,1721503851424,-558.88,0.00013972,2]
[332754057,1721503851434,-2974.58,0.00013972,2]
[332754058,1721503851444,-2007.77,0.00013972,2]
[332754059,1721503851454,-500.0,0.00013972,2]
[332754060,1721503851463,-500.0,0.00013972,2]
[332754061,1721503851473,-3110.77,0.00013972,2]
[332754062,1721503851483,-7393.66,0.00013972,2]
[332754063,1721503851492,-500.0,0.00013972,2]
[332754064,1721503851502,-500.0,0.00013972,2]
[332754065,1721503851513,-1486.4,0.00013972,2]
[332754066,1721503851523,-520.92944104,0.00013972,2]
[332754067,1721503851535,-764.22,0.00013972,2]
[332754068,1721503851546,-500.0,0.00013972,2]
[332754069,1721503851557,-4793.63,0.00013972,2]
[332754070,1721503851567,-1123.92,0.00013972,2]
[332754071,1721503851580,-500.0,0.00013972,2]
[332754072,1721503851590,-610.77,0.00013972,2]
[332754073,1721503851600,-500.0,0.00013972,2]
[332754074,1721503851611,-500.0,0.00013972,2]
[332754075,1721503851621,-500.0,0.00013972,2]
[332754076,1721503851630,-5183.34,0.00013972,2]
[332754077,1721503851640,-500.0,0.00013972,2]
[332754078,1721503851650,-500.0,0.00013972,2]
[332754079,1721503851660,-724.89,0.00013972,2]
[332754080,1721503851670,-1377.72,0.00013972,2]
[332754081,1721503851680,-1079.42,0.00013972,2]
[332754082,1721503851689,-500.0,0.00013972,2]
[332754083,1721503851699,-1410.52,0.00013972,2]
[332754084,1721503851709,-2024.84,0.00013972,2]
[332754085,1721503851719,-1792.69,0.00013972,2]
[332754086,1721503851729,-500.0,0.00013972,2]
[332754087,1721503851738,-11527.04,0.00013972,2]
[332754088,1721503851748,-2718.37,0.00013972,2]